[Event "Live Chess"]
[Site "Chess.com"]
[Date "2023.09.16"]
[Round "-"]
[White "kslusk"]
[Black "ArthurMPRJ"]
[Result "0-1"]
[WhiteElo "809"]
[BlackElo "1256"]
[TimeControl "900+5"]
[EndTime "6:43:16 PDT"]
[Termination "ArthurMPRJ venceu por desistência"]

1. e4 {[%clk 0:15:03]} 1... c5 {[%clk 0:15:03.4]} 2. Nf3 {[%clk 0:15:04.8]} 2...
e6 {[%clk 0:15:07.8]} 3. d4 {[%clk 0:15:09]} 3... cxd4 {[%clk 0:15:12.7]} 4.
Nxd4 {[%clk 0:15:13.2]} 4... Nc6 {[%clk 0:15:15.8]} 5. Nxc6 {[%clk 0:15:16.4]}
5... bxc6 {[%clk 0:15:19.4]} 6. Nc3 {[%clk 0:15:20.3]} 6... d5 {[%clk
0:15:22.9]} 7. exd5 {[%clk 0:15:23.8]} 7... cxd5 {[%clk 0:15:27.8]} 8. Bb5+
{[%clk 0:15:25]} 8... Bd7 {[%clk 0:15:32.3]} 9. Bxd7+ {[%clk 0:15:28.8]} 9...
Qxd7 {[%clk 0:15:37.2]} 10. O-O {[%clk 0:15:31.9]} 10... Nf6 {[%clk 0:15:40.8]}
11. Bg5 {[%clk 0:15:34.3]} 11... Be7 {[%clk 0:15:41.1]} 12. Qd2 {[%clk
0:15:19.2]} 12... Qb7 {[%clk 0:14:19.2]} 13. Rab1 {[%clk 0:14:53.1]} 13... O-O
{[%clk 0:14:18.7]} 14. Rfe1 {[%clk 0:14:42.6]} 14... Rfd8 {[%clk 0:14:17.1]} 15.
a3 {[%clk 0:14:19.8]} 15... d4 {[%clk 0:14:07.1]} 16. Bxf6 {[%clk 0:13:58.6]}
16... dxc3 {[%clk 0:13:57.1]} 17. bxc3 {[%clk 0:13:55.4]} 17... Rxd2 {[%clk
0:13:17.3]} 18. Rxb7 {[%clk 0:13:57.7]} 18... Bxf6 {[%clk 0:13:19]} 19. Reb1
{[%clk 0:13:57.4]} 19... Rad8 {[%clk 0:13:11.2]} 20. h3 {[%clk 0:13:48.9]} 20...
Rd1+ {[%clk 0:13:14]} 21. Rxd1 {[%clk 0:13:51.2]} 21... Rxd1+ {[%clk 0:13:18.9]}
22. Kh2 {[%clk 0:13:55.3]} 22... g6 {[%clk 0:13:18.4]} 23. Rxa7 {[%clk
0:13:57.1]} 23... Bxc3 {[%clk 0:13:18.9]} 24. Rc7 {[%clk 0:14:00.7]} 24... Be5+
{[%clk 0:13:22]} 25. g3 {[%clk 0:14:04.1]} 25... Bxc7 {[%clk 0:13:25.7]} 0-1

[Event "Live Chess"]
[Site "Chess.com"]
[Date "2023.09.16"]
[Round "-"]
[White "AlphaKaua10"]
[Black "Thiago1451"]
[Result "1-0"]
[WhiteElo "1101"]
[BlackElo "564"]
[TimeControl "900+5"]
[EndTime "6:43:33 PDT"]
[Termination "AlphaKaua10 venceu por desistência"]

1. d4 {[%clk 0:15:02.5]} 1... d5 {[%clk 0:15:02]} 2. c4 {[%clk 0:15:05.6]} 2...
e6 {[%clk 0:15:05.6]} 3. Nc3 {[%clk 0:15:08.1]} 3... Nf6 {[%clk 0:15:09]} 4. Nf3
{[%clk 0:15:11.4]} 4... Bd6 {[%clk 0:15:10.1]} 5. g3 {[%clk 0:15:15.6]} 5... O-O
{[%clk 0:15:14.1]} 6. Bg2 {[%clk 0:15:19.7]} 6... dxc4 {[%clk 0:15:15]} 7. O-O
{[%clk 0:15:21.4]} 7... c5 {[%clk 0:15:16.5]} 8. dxc5 {[%clk 0:15:21]} 8... Bxc5
{[%clk 0:15:20.7]} 9. Qxd8 {[%clk 0:15:25.2]} 9... Rxd8 {[%clk 0:15:23.7]} 10.
Ne5 {[%clk 0:15:27.6]} 10... Nbd7 {[%clk 0:15:22.7]} 11. Nxc4 {[%clk 0:15:30.5]}
11... Nb6 {[%clk 0:15:20]} 12. Nxb6 {[%clk 0:15:34.2]} 12... axb6 {[%clk
0:15:24.9]} 13. Bf4 {[%clk 0:15:33.2]} 13... b5 {[%clk 0:15:25.4]} 14. Nxb5
{[%clk 0:15:33.1]} 14... Rb8 {[%clk 0:15:25.5]} 15. Rad1 {[%clk 0:15:35.9]}
15... Rxd1 {[%clk 0:15:28]} 16. Rxd1 {[%clk 0:15:39.6]} 16... Bd7 {[%clk
0:15:32.7]} 17. Bxb8 {[%clk 0:15:33.6]} 1-0

[Event "Live Chess"]
[Site "Chess.com"]
[Date "2023.09.16"]
[Round "-"]
[White "gu1c0rrea"]
[Black "NavarroChess09"]
[Result "0-1"]
[WhiteElo "805"]
[BlackElo "1318"]
[TimeControl "900+5"]
[EndTime "6:43:43 PDT"]
[Termination "NavarroChess09 venceu por xeque-mate"]

1. e4 {[%clk 0:15:04]} 1... d6 {[%clk 0:15:02.8]} 2. d4 {[%clk 0:15:08]} 2... b6
{[%clk 0:15:04.4]} 3. Nf3 {[%clk 0:15:06.5]} 3... Bb7 {[%clk 0:15:09.3]} 4. Nc3
{[%clk 0:15:08.5]} 4... Nf6 {[%clk 0:15:11.6]} 5. e5 {[%clk 0:15:10.7]} 5...
dxe5 {[%clk 0:15:13.7]} 6. Nxe5 {[%clk 0:15:14.8]} 6... e6 {[%clk 0:15:11.7]} 7.
Bg5 {[%clk 0:15:09.5]} 7... Bd6 {[%clk 0:15:11.9]} 8. Nc4 {[%clk 0:15:06.9]}
8... Bb4 {[%clk 0:15:10.8]} 9. Bd2 {[%clk 0:14:30.3]} 9... O-O {[%clk
0:15:10.1]} 10. Ne5 {[%clk 0:14:25.1]} 10... Nc6 {[%clk 0:15:02.5]} 11. a3
{[%clk 0:13:50.8]} 11... Bxc3 {[%clk 0:15:01.7]} 12. Bxc3 {[%clk 0:13:52.5]}
12... Nxe5 {[%clk 0:15:04.6]} 13. Bd3 {[%clk 0:13:34.6]} 13... Nxd3+ {[%clk
0:14:48.7]} 14. Qxd3 {[%clk 0:13:34.5]} 14... Bxg2 {[%clk 0:14:52.8]} 15. Rg1
{[%clk 0:13:33.4]} 15... Bb7 {[%clk 0:14:48.6]} 16. Qg3 {[%clk 0:13:28.1]} 16...
g6 {[%clk 0:14:47]} 17. Qh4 {[%clk 0:13:12.6]} 17... Ne4 {[%clk 0:14:45.3]} 18.
Qf4 {[%clk 0:12:47.1]} 18... Qf6 {[%clk 0:14:32.4]} 19. Qxf6 {[%clk 0:12:44.7]}
19... Nxf6 {[%clk 0:14:37.3]} 20. O-O-O {[%clk 0:12:43.4]} 20... Ne4 {[%clk
0:14:31.4]} 21. Bb4 {[%clk 0:12:42.3]} 21... Rfd8 {[%clk 0:14:29.7]} 22. c3
{[%clk 0:12:34.6]} 22... Nxf2 {[%clk 0:14:29.4]} 23. Rdf1 {[%clk 0:12:34.8]}
23... Nd3+ {[%clk 0:14:28]} 24. Kb1 {[%clk 0:12:37.9]} 24... Be4 {[%clk
0:14:28.9]} 25. Be7 {[%clk 0:12:35]} 25... Rd7 {[%clk 0:14:25.7]} 26. Bf6 {[%clk
0:12:30.2]} 26... Nb4+ {[%clk 0:13:49.8]} 27. Kc1 {[%clk 0:12:30.2]} 27... Na2+
{[%clk 0:13:52.8]} 28. Kd1 {[%clk 0:12:25.5]} 28... c5 {[%clk 0:13:45.9]} 29. h4
{[%clk 0:12:25.5]} 29... cxd4 {[%clk 0:13:47.8]} 30. cxd4 {[%clk 0:12:27.6]}
30... Rc8 {[%clk 0:13:44.3]} 31. Ke2 {[%clk 0:12:24.9]} 31... Rc2+ {[%clk
0:13:44.9]} 32. Ke1 {[%clk 0:12:24.9]} 32... Nc1 {[%clk 0:13:45.2]} 33. Kd1
{[%clk 0:12:22.9]} 33... Rdc7 {[%clk 0:13:35.4]} 34. h5 {[%clk 0:12:21.7]} 34...
Rxb2 {[%clk 0:13:29.3]} 35. hxg6 {[%clk 0:12:16.3]} 35... hxg6 {[%clk
0:13:23.8]} 36. Rf4 {[%clk 0:12:11.9]} 36... Nd3 {[%clk 0:13:16.6]} 37. Rh4
{[%clk 0:12:05.3]} 37... Rc1# {[%clk 0:13:20.9]} 0-1

[Event "Live Chess"]
[Site "Chess.com"]
[Date "2023.09.16"]
[Round "-"]
[White "KauaShelby015"]
[Black "GabrielGGCF"]
[Result "1-0"]
[WhiteElo "1262"]
[BlackElo "1431"]
[TimeControl "900+5"]
[EndTime "6:44:50 PDT"]
[Termination "KauaShelby015 venceu por desistência"]

1. e4 {[%clk 0:15:02]} 1... e5 {[%clk 0:15:02.6]} 2. Nf3 {[%clk 0:15:05.2]} 2...
Nc6 {[%clk 0:15:06.8]} 3. d4 {[%clk 0:15:09.1]} 3... exd4 {[%clk 0:15:08.7]} 4.
Bc4 {[%clk 0:15:12.7]} 4... g6 {[%clk 0:15:06.9]} 5. O-O {[%clk 0:15:11.9]} 5...
Bg7 {[%clk 0:15:09.7]} 6. Ng5 {[%clk 0:14:42.4]} 6... Ne5 {[%clk 0:14:51.5]} 7.
Bb3 {[%clk 0:14:13.8]} 7... Bf6 {[%clk 0:14:42.9]} 8. f4 {[%clk 0:14:16.1]} 8...
Bxg5 {[%clk 0:14:40.4]} 9. fxg5 {[%clk 0:14:16.9]} 9... c5 {[%clk 0:14:40.4]}
10. c3 {[%clk 0:14:15.4]} 10... dxc3 {[%clk 0:14:23.3]} 11. Nxc3 {[%clk
0:14:16.6]} 11... d6 {[%clk 0:14:26.7]} 12. Bf4 {[%clk 0:14:05.9]} 12... Bg4
{[%clk 0:14:19.9]} 13. Qc2 {[%clk 0:13:37.1]} 13... a6 {[%clk 0:13:58.3]} 14.
Bxe5 {[%clk 0:13:35.1]} 14... dxe5 {[%clk 0:14:00.6]} 15. Bxf7+ {[%clk
0:13:36.7]} 15... Kf8 {[%clk 0:13:54.2]} 16. Be6+ {[%clk 0:13:30.8]} 16... Nf6
{[%clk 0:13:40]} 17. gxf6 {[%clk 0:13:32.2]} 17... Bxe6 {[%clk 0:13:43.1]} 18.
Rad1 {[%clk 0:13:25.4]} 18... Qb6 {[%clk 0:13:41.1]} 19. Na4 {[%clk 0:13:16.8]}
19... Qb5 {[%clk 0:13:29]} 20. Qxc5+ {[%clk 0:13:13]} 20... Qxc5+ {[%clk
0:13:32.5]} 21. Nxc5 {[%clk 0:13:17.5]} 21... Bxa2 {[%clk 0:13:34.9]} 22. Nxb7
{[%clk 0:13:19.9]} 22... Rb8 {[%clk 0:13:37.5]} 23. Nd6 {[%clk 0:13:22.9]} 23...
Rxb2 {[%clk 0:13:32.4]} 24. f7 {[%clk 0:13:04.4]} 24... h5 {[%clk 0:13:29.1]}
25. Nc8 {[%clk 0:12:43.2]} 25... Rh7 {[%clk 0:13:21.9]} 26. Rd8+ {[%clk
0:12:44.9]} 1-0

[Event "Live Chess"]
[Site "Chess.com"]
[Date "2023.09.16"]
[Round "-"]
[White "Megruo988"]
[Black "lucasbezerraja"]
[Result "0-1"]
[WhiteElo "1714"]
[BlackElo "1811"]
[TimeControl "900+5"]
[EndTime "6:45:11 PDT"]
[Termination "lucasbezerraja venceu por xeque-mate"]

1. e4 {[%clk 0:15:03.6]} 1... c5 {[%clk 0:15:04]} 2. c3 {[%clk 0:15:07]} 2... d6
{[%clk 0:15:02.9]} 3. d4 {[%clk 0:15:10.4]} 3... cxd4 {[%clk 0:15:07.3]} 4. cxd4
{[%clk 0:15:14.3]} 4... e6 {[%clk 0:15:10.7]} 5. Nf3 {[%clk 0:15:17.9]} 5... Nc6
{[%clk 0:15:12.2]} 6. Nc3 {[%clk 0:15:15.6]} 6... Nge7 {[%clk 0:15:14]} 7. Be3
{[%clk 0:15:18.5]} 7... g6 {[%clk 0:15:16.7]} 8. Bd3 {[%clk 0:15:07.6]} 8... Bg7
{[%clk 0:15:20.3]} 9. Qd2 {[%clk 0:15:03]} 9... O-O {[%clk 0:15:08.6]} 10. h4
{[%clk 0:15:02.9]} 10... Nb4 {[%clk 0:15:01.7]} 11. Be2 {[%clk 0:14:52.6]} 11...
h5 {[%clk 0:14:32.7]} 12. a3 {[%clk 0:14:55.4]} 12... Nbc6 {[%clk 0:14:36.4]}
13. Nh2 {[%clk 0:14:08.2]} 13... e5 {[%clk 0:14:04.5]} 14. d5 {[%clk 0:14:05.5]}
14... Nd4 {[%clk 0:14:06.4]} 15. Bxd4 {[%clk 0:13:56]} 15... exd4 {[%clk
0:14:11.3]} 16. Na2 {[%clk 0:13:19.5]} 16... Bd7 {[%clk 0:13:16.2]} 17. Rc1
{[%clk 0:13:11]} 17... Rc8 {[%clk 0:13:14]} 18. O-O {[%clk 0:13:08]} 18... Qb6
{[%clk 0:12:28.4]} 19. Nb4 {[%clk 0:12:47.6]} 19... Kh7 {[%clk 0:11:21.1]} 20.
Rcd1 {[%clk 0:12:09.6]} 20... Bh6 {[%clk 0:11:05.6]} 21. Qxd4 {[%clk 0:12:00.7]}
21... Qxd4 {[%clk 0:10:41.7]} 22. Rxd4 {[%clk 0:12:01.4]} 22... a5 {[%clk
0:10:27.9]} 23. Nd3 {[%clk 0:11:17.4]} 23... Bg7 {[%clk 0:09:51.7]} 24. e5
{[%clk 0:11:17.4]} 24... dxe5 {[%clk 0:09:48.9]} 25. Re4 {[%clk 0:11:05.5]}
25... f5 {[%clk 0:09:37.1]} 26. Rxe5 {[%clk 0:09:43.6]} 26... Bxe5 {[%clk
0:09:40.3]} 27. Nxe5 {[%clk 0:09:47.7]} 27... Ba4 {[%clk 0:08:58.5]} 28. Nhf3
{[%clk 0:09:35.1]} 28... Nxd5 {[%clk 0:08:06.9]} 29. Ng5+ {[%clk 0:09:29.3]}
29... Kh6 {[%clk 0:07:42.4]} 30. Bf3 {[%clk 0:09:20.3]} 30... Nf6 {[%clk
0:06:45.6]} 31. Re1 {[%clk 0:08:56.7]} 31... Rc7 {[%clk 0:05:51.2]} 32. b4
{[%clk 0:07:33.4]} 32... Ng4 {[%clk 0:05:43.4]} 33. Bxg4 {[%clk 0:07:27.2]}
33... fxg4 {[%clk 0:05:44.1]} 34. bxa5 {[%clk 0:07:17.6]} 34... Rf5 {[%clk
0:05:26.4]} 35. Kh2 {[%clk 0:05:45.6]} 35... Rxf2 {[%clk 0:04:42.7]} 36. Rb1
{[%clk 0:04:40]} 36... Rf5 {[%clk 0:03:49.3]} 37. Nef7+ {[%clk 0:03:08.9]} 37...
Rcxf7 {[%clk 0:03:49]} 38. Nxf7+ {[%clk 0:03:11.2]} 38... Rxf7 {[%clk
0:03:53.9]} 39. Kg3 {[%clk 0:02:56.9]} 39... Bc6 {[%clk 0:03:47.2]} 40. Rb6
{[%clk 0:02:54.7]} 40... Rd7 {[%clk 0:02:58.9]} 41. a6 {[%clk 0:02:53.3]} 41...
Rd3+ {[%clk 0:02:35.7]} 42. Kf4 {[%clk 0:02:49.5]} 42... Bxg2 {[%clk 0:02:30.2]}
43. axb7 {[%clk 0:02:01.1]} 43... Bxb7 {[%clk 0:02:30.7]} 44. Rxb7 {[%clk
0:02:05.1]} 44... Rxa3 {[%clk 0:02:35]} 45. Ke5 {[%clk 0:02:04.4]} 45... g3
{[%clk 0:02:36.3]} 46. Kf6 {[%clk 0:02:08.3]} 46... Ra6+ {[%clk 0:02:33]} 47.
Kf7 {[%clk 0:02:08.6]} 47... g2 {[%clk 0:02:30.3]} 48. Rb8 {[%clk 0:02:11.7]}
48... Ra7+ {[%clk 0:02:31.2]} 49. Kf6 {[%clk 0:02:12.1]} 49... g1=Q {[%clk
0:02:33.4]} 50. Rh8+ {[%clk 0:02:15.8]} 50... Rh7 {[%clk 0:02:37.8]} 51. Rxh7+
{[%clk 0:02:00.8]} 51... Kxh7 {[%clk 0:02:42.7]} 52. Kf7 {[%clk 0:02:04.4]}
52... Qe3 {[%clk 0:02:44.1]} 53. Kf6 {[%clk 0:02:08.5]} 53... Qe4 {[%clk
0:02:47.2]} 54. Kg5 {[%clk 0:02:12.5]} 54... Qf5# {[%clk 0:02:50.6]} 0-1

[Event "Live Chess"]
[Site "Chess.com"]
[Date "2023.09.16"]
[Round "-"]
[White "vitinho_lawliet"]
[Black "RickBrasil"]
[Result "0-1"]
[WhiteElo "947"]
[BlackElo "1867"]
[TimeControl "900+5"]
[EndTime "6:46:19 PDT"]
[Termination "RickBrasil venceu por desistência"]

1. e4 {[%clk 0:14:56.6]} 1... c6 {[%clk 0:14:54]} 2. Nc3 {[%clk 0:14:59.3]} 2...
d5 {[%clk 0:14:58.9]} 3. e5 {[%clk 0:15:00.8]} 3... c5 {[%clk 0:14:48.5]} 4. d4
{[%clk 0:14:59.7]} 4... e6 {[%clk 0:14:41.3]} 5. Nf3 {[%clk 0:14:54.8]} 5...
cxd4 {[%clk 0:14:35.4]} 6. Nxd4 {[%clk 0:14:50.3]} 6... Nc6 {[%clk 0:14:39.9]}
7. Nxc6 {[%clk 0:14:53.7]} 7... bxc6 {[%clk 0:14:44.1]} 8. Be2 {[%clk
0:14:41.1]} 8... Qc7 {[%clk 0:14:32.4]} 9. Bf4 {[%clk 0:14:43.3]} 9... Ne7
{[%clk 0:14:30.5]} 10. O-O {[%clk 0:14:44.7]} 10... Ng6 {[%clk 0:14:34.9]} 11.
Qd4 {[%clk 0:14:35.6]} 11... Nxf4 {[%clk 0:14:27.8]} 12. Qxf4 {[%clk 0:14:38.1]}
12... Be7 {[%clk 0:14:11.1]} 13. Bh5 {[%clk 0:14:29.2]} 13... g6 {[%clk
0:13:55]} 14. Be2 {[%clk 0:14:22.3]} 14... a6 {[%clk 0:13:25.6]} 15. g4 {[%clk
0:14:13.6]} 15... f6 {[%clk 0:12:56.5]} 16. Qh6 {[%clk 0:13:49.7]} 16... Bf8
{[%clk 0:12:38.1]} 17. Qe3 {[%clk 0:13:42.5]} 17... fxe5 {[%clk 0:12:22.5]} 18.
f4 {[%clk 0:13:40.1]} 18... d4 {[%clk 0:12:21]} 19. Qxe5 {[%clk 0:13:27.7]}
19... Qxe5 {[%clk 0:12:21.8]} 20. fxe5 {[%clk 0:13:30.7]} 20... dxc3 {[%clk
0:12:26.2]} 21. bxc3 {[%clk 0:13:29.7]} 21... Bc5+ {[%clk 0:12:23.5]} 22. Kg2
{[%clk 0:13:30]} 22... Rb8 {[%clk 0:12:18.9]} 23. Rab1 {[%clk 0:13:30.4]} 23...
Rxb1 {[%clk 0:12:21.7]} 24. Rxb1 {[%clk 0:13:33]} 24... Rf8 {[%clk 0:12:25.9]}
25. Rb8 {[%clk 0:13:35.8]} 25... Rf2+ {[%clk 0:12:09.5]} 26. Kg3 {[%clk
0:13:38.3]} 26... Rxe2 {[%clk 0:11:41.1]} 27. Rxc8+ {[%clk 0:13:40.8]} 27... Kd7
{[%clk 0:11:45.9]} 28. Ra8 {[%clk 0:13:33.9]} 28... Rxc2 {[%clk 0:11:42.9]} 29.
Rxa6 {[%clk 0:13:36.8]} 29... Rxc3+ {[%clk 0:11:44.7]} 30. Kf4 {[%clk
0:13:40.3]} 30... Be3+ {[%clk 0:11:41.8]} 31. Ke4 {[%clk 0:13:37]} 31... Bg1
{[%clk 0:11:38.2]} 32. h4 {[%clk 0:13:39.2]} 32... Rc4+ {[%clk 0:11:40.6]} 33.
Kf3 {[%clk 0:13:41.6]} 33... h5 {[%clk 0:11:37.6]} 34. Ra7+ {[%clk 0:13:26.9]}
34... Bxa7 {[%clk 0:11:40.8]} 35. g5 {[%clk 0:13:28.4]} 35... Rxh4 {[%clk
0:11:44.3]} 36. Kg3 {[%clk 0:13:29.9]} 36... Ra4 {[%clk 0:11:49.2]} 0-1

[Event "Live Chess"]
[Site "Chess.com"]
[Date "2023.09.16"]
[Round "-"]
[White "Francisco_Ferrari"]
[Black "sleepGM86"]
[Result "1-0"]
[WhiteElo "2169"]
[BlackElo "1125"]
[TimeControl "900+5"]
[EndTime "6:46:29 PDT"]
[Termination "Francisco_Ferrari venceu por desistência"]

1. e4 {[%clk 0:15:03]} 1... c5 {[%clk 0:15:02.1]} 2. Nf3 {[%clk 0:15:07.1]} 2...
Nc6 {[%clk 0:15:05.8]} 3. b4 {[%clk 0:15:09.8]} 3... cxb4 {[%clk 0:15:06.2]} 4.
d4 {[%clk 0:15:12.7]} 4... g6 {[%clk 0:15:08.6]} 5. Bb2 {[%clk 0:14:58.3]} 5...
Bg7 {[%clk 0:15:11.9]} 6. Bc4 {[%clk 0:14:58.5]} 6... e6 {[%clk 0:15:15.8]} 7.
O-O {[%clk 0:14:55.4]} 7... d5 {[%clk 0:15:15.1]} 8. exd5 {[%clk 0:14:58.2]}
8... exd5 {[%clk 0:15:19.3]} 9. Re1+ {[%clk 0:14:56.3]} 9... Nge7 {[%clk
0:15:23]} 10. Bb5 {[%clk 0:15:00.5]} 10... O-O {[%clk 0:15:25.6]} 11. Nbd2
{[%clk 0:15:04.2]} 11... a6 {[%clk 0:15:28.5]} 12. Bd3 {[%clk 0:15:07.8]} 12...
Bf5 {[%clk 0:15:22.9]} 13. Nb3 {[%clk 0:15:11.8]} 13... Bxd3 {[%clk 0:15:25.7]}
14. Qxd3 {[%clk 0:15:16.7]} 14... Nf5 {[%clk 0:15:23.5]} 15. Nc5 {[%clk
0:15:15.3]} 15... Qc7 {[%clk 0:15:05.2]} 16. h4 {[%clk 0:14:25.9]} 16... Rfe8
{[%clk 0:14:50.4]} 17. h5 {[%clk 0:14:27.9]} 17... h6 {[%clk 0:14:52.5]} 18.
hxg6 {[%clk 0:14:23.7]} 18... fxg6 {[%clk 0:14:56.6]} 19. Qb3 {[%clk 0:14:23.1]}
19... Re5 {[%clk 0:14:21.4]} 1-0

[Event "Live Chess"]
[Site "Chess.com"]
[Date "2023.09.16"]
[Round "-"]
[White "Samueeeseeel"]
[Black "Mozart5501"]
[Result "0-1"]
[WhiteElo "875"]
[BlackElo "1796"]
[TimeControl "900+5"]
[EndTime "6:47:07 PDT"]
[Termination "Mozart5501 venceu por desistência"]

1. c4 {[%clk 0:15:02.6]} 1... Nf6 {[%clk 0:15:01]} 2. Nc3 {[%clk 0:15:04.9]}
2... g6 {[%clk 0:15:05.5]} 3. g3 {[%clk 0:15:08.3]} 3... Bg7 {[%clk 0:15:10.1]}
4. Bg2 {[%clk 0:15:12.1]} 4... c5 {[%clk 0:15:13.2]} 5. e4 {[%clk 0:15:15.4]}
5... e5 {[%clk 0:15:14.4]} 6. Nge2 {[%clk 0:15:19.2]} 6... Nc6 {[%clk 0:15:18]}
7. O-O {[%clk 0:15:20.9]} 7... O-O {[%clk 0:15:21.1]} 8. d3 {[%clk 0:15:24.7]}
8... d6 {[%clk 0:15:25.2]} 9. Be3 {[%clk 0:15:27.9]} 9... Be6 {[%clk 0:15:05.5]}
10. Nd5 {[%clk 0:15:29.5]} 10... Bxd5 {[%clk 0:15:02.1]} 11. exd5 {[%clk
0:15:33.2]} 11... Ne7 {[%clk 0:15:04.8]} 12. Qb3 {[%clk 0:15:35.7]} 12... Qc7
{[%clk 0:15:07.7]} 13. Nc3 {[%clk 0:15:36]} 13... Nf5 {[%clk 0:15:11.8]} 14.
Rfe1 {[%clk 0:15:36.6]} 14... a6 {[%clk 0:15:15.5]} 15. Qc2 {[%clk 0:15:37.6]}
15... Nxe3 {[%clk 0:15:16]} 16. Rxe3 {[%clk 0:15:40.6]} 16... Bh6 {[%clk
0:15:18.6]} 17. Ree1 {[%clk 0:15:42.9]} 17... Rfe8 {[%clk 0:15:19.9]} 18. Rf1
{[%clk 0:15:41.1]} 18... Rab8 {[%clk 0:15:08.3]} 19. b3 {[%clk 0:15:41.7]} 19...
b5 {[%clk 0:15:12.5]} 20. Ne2 {[%clk 0:15:39.3]} 20... bxc4 {[%clk 0:15:08.4]}
21. dxc4 {[%clk 0:15:41.1]} 21... e4 {[%clk 0:15:00]} 22. f3 {[%clk 0:15:34.9]}
22... exf3 {[%clk 0:15:02.7]} 23. Bxf3 {[%clk 0:15:37.4]} 23... Qe7 {[%clk
0:15:01.4]} 24. Rae1 {[%clk 0:15:39.4]} 24... Qe3+ {[%clk 0:15:00.9]} 25. Kh1
{[%clk 0:15:40.6]} 25... Ne4 {[%clk 0:15:00]} 26. Nc1 {[%clk 0:15:30]} 26...
Nf2+ {[%clk 0:13:58.5]} 27. Kg2 {[%clk 0:15:10.3]} 27... Qxe1 {[%clk 0:13:57.2]}
28. Rxe1 {[%clk 0:15:12.1]} 28... Rxe1 {[%clk 0:14:00.3]} 29. Kxf2 {[%clk
0:15:11.1]} 29... Rxc1 {[%clk 0:13:59.1]} 30. Qe2 {[%clk 0:15:14.5]} 30... Rc3
{[%clk 0:13:54.3]} 31. Qe7 {[%clk 0:14:35.3]} 31... Rc2+ {[%clk 0:13:35.1]} 32.
Kf1 {[%clk 0:14:36.5]} 32... Rxa2 {[%clk 0:13:34.2]} 33. Qxd6 {[%clk 0:14:38.6]}
33... Rxb3 {[%clk 0:13:31.8]} 34. Bd1 {[%clk 0:14:39.5]} 34... Rb1 {[%clk
0:13:27.2]} 35. Ke1 {[%clk 0:14:42.4]} 35... Rxh2 {[%clk 0:13:08.6]} 36. Qxc5
{[%clk 0:14:43.4]} 36... Rh1+ {[%clk 0:13:00.5]} 37. Ke2 {[%clk 0:14:44.7]}
37... Rbxd1 {[%clk 0:13:01.1]} 38. Qc8+ {[%clk 0:14:46.9]} 38... Kg7 {[%clk
0:13:04.2]} 39. Qxa6 {[%clk 0:14:50.6]} 39... Rhe1+ {[%clk 0:13:00.8]} 40. Kf2
{[%clk 0:14:52.1]} 40... Rf1+ {[%clk 0:13:04.9]} 41. Ke2 {[%clk 0:14:54.8]}
41... Rde1+ {[%clk 0:13:05.7]} 42. Kd3 {[%clk 0:14:56.5]} 42... Rf3+ {[%clk
0:13:08.7]} 43. Kc2 {[%clk 0:14:50.6]} 43... Re2+ {[%clk 0:13:10.5]} 44. Kd1
{[%clk 0:14:53.1]} 44... Rd2+ {[%clk 0:13:12.4]} 45. Ke1 {[%clk 0:14:54.9]}
45... Rxg3 {[%clk 0:13:07.7]} 46. Qb6 {[%clk 0:14:32.7]} 46... Be3 {[%clk
0:13:05]} 47. Qxe3 {[%clk 0:14:26.4]} 47... Rxe3+ {[%clk 0:13:07.9]} 48. Kxd2
{[%clk 0:14:31]} 48... Re4 {[%clk 0:13:10.3]} 49. Kd3 {[%clk 0:14:34.3]} 49...
Re7 {[%clk 0:13:14]} 50. Kd4 {[%clk 0:14:36.8]} 50... Kf6 {[%clk 0:13:15.5]} 51.
c5 {[%clk 0:14:40.5]} 51... Rd7 {[%clk 0:13:18.7]} 52. c6 {[%clk 0:14:43.9]}
52... Rc7 {[%clk 0:13:21.6]} 53. Kc5 {[%clk 0:14:48]} 53... Rc8 {[%clk
0:13:22.3]} 54. d6 {[%clk 0:14:51.8]} 54... Ke6 {[%clk 0:13:26.3]} 55. d7 {[%clk
0:14:54.9]} 55... Rd8 {[%clk 0:13:26.7]} 56. Kb6 {[%clk 0:14:59.2]} 56... Rxd7
{[%clk 0:13:30.5]} 57. cxd7 {[%clk 0:15:02.6]} 57... Kxd7 {[%clk 0:13:35.2]} 0-1

[Event "Live Chess"]
[Site "Chess.com"]
[Date "2023.09.16"]
[Round "-"]
[White "z_anne_ari"]
[Black "zezemito921"]
[Result "1-0"]
[WhiteElo "1279"]
[BlackElo "907"]
[TimeControl "900+5"]
[EndTime "6:47:10 PDT"]
[Termination "z_anne_ari venceu por desistência"]

1. d4 {[%clk 0:15:04.2]} 1... d5 {[%clk 0:15:03]} 2. c4 {[%clk 0:15:08.1]} 2...
c6 {[%clk 0:15:05.3]} 3. Nc3 {[%clk 0:15:12]} 3... Nf6 {[%clk 0:15:08]} 4. Nf3
{[%clk 0:15:13.2]} 4... e6 {[%clk 0:15:09.7]} 5. Bg5 {[%clk 0:15:16.8]} 5... Be7
{[%clk 0:15:05.4]} 6. e3 {[%clk 0:15:20.5]} 6... O-O {[%clk 0:15:07.7]} 7. Bd3
{[%clk 0:15:16]} 7... h6 {[%clk 0:14:58.7]} 8. Bxf6 {[%clk 0:15:19.3]} 8... Bxf6
{[%clk 0:14:59.8]} 9. cxd5 {[%clk 0:15:23.5]} 9... cxd5 {[%clk 0:15:02]} 10. Bc2
{[%clk 0:15:27.4]} 10... Nc6 {[%clk 0:15:01.3]} 11. a3 {[%clk 0:15:27.2]} 11...
Re8 {[%clk 0:14:57.6]} 12. O-O {[%clk 0:15:30.8]} 12... e5 {[%clk 0:14:58.1]}
13. Qd3 {[%clk 0:15:26.4]} 13... e4 {[%clk 0:14:46.6]} 14. Qb5 {[%clk
0:15:21.9]} 14... exf3 {[%clk 0:14:44.2]} 15. g3 {[%clk 0:15:13.2]} 15... a6
{[%clk 0:14:40.7]} 16. Qb3 {[%clk 0:15:10.5]} 16... Bh3 {[%clk 0:14:31.9]} 17.
Rfe1 {[%clk 0:15:10.6]} 17... Na5 {[%clk 0:14:10]} 18. Qa2 {[%clk 0:15:03.4]}
18... Nc4 {[%clk 0:13:53]} 19. e4 {[%clk 0:14:47.3]} 19... dxe4 {[%clk 0:13:33]}
20. Nxe4 {[%clk 0:14:51.3]} 20... Qxd4 {[%clk 0:13:29.5]} 21. Nxf6+ {[%clk
0:14:52.9]} 21... gxf6 {[%clk 0:13:31.5]} 22. Rad1 {[%clk 0:14:49.3]} 22...
Rxe1+ {[%clk 0:13:14.2]} 23. Rxe1 {[%clk 0:14:51]} 23... Nd2 {[%clk 0:13:13.4]}
24. Bg6 {[%clk 0:14:42.5]} 24... Rf8 {[%clk 0:12:56]} 25. b4 {[%clk 0:14:17.9]}
25... Kg7 {[%clk 0:12:45.1]} 26. Bh5 {[%clk 0:14:18.3]} 26... Ne4 {[%clk
0:12:45.1]} 27. Bxf3 {[%clk 0:14:17.9]} 27... Re8 {[%clk 0:12:28.4]} 28. Qc2
{[%clk 0:14:00.4]} 28... f5 {[%clk 0:11:12.4]} 29. Bg2 {[%clk 0:13:52.4]} 29...
Rc8 {[%clk 0:10:56.3]} 30. Qe2 {[%clk 0:13:35.5]} 30... Bxg2 {[%clk 0:10:53.6]}
31. Kxg2 {[%clk 0:13:39]} 31... Qd5 {[%clk 0:10:51.6]} 32. Kg1 {[%clk
0:13:28.2]} 32... Nc3 {[%clk 0:10:34.6]} 33. Qb2 {[%clk 0:12:55.1]} 33... a5
{[%clk 0:10:01]} 34. Rc1 {[%clk 0:12:57.4]} 34... Qd3 {[%clk 0:09:07.1]} 35. Kg2
{[%clk 0:12:32.1]} 35... Kg8 {[%clk 0:08:54.3]} 36. bxa5 {[%clk 0:12:14.2]}
36... Qe4+ {[%clk 0:08:46.2]} 37. f3 {[%clk 0:12:06.9]} 37... Qd3 {[%clk
0:08:38.9]} 38. Rf1 {[%clk 0:11:40.4]} 38... Re8 {[%clk 0:08:25.6]} 39. Rf2
{[%clk 0:11:35.3]} 39... Re2 {[%clk 0:07:59]} 40. Rxe2 {[%clk 0:11:30.4]} 40...
Qxe2+ {[%clk 0:07:58.2]} 41. Qxe2 {[%clk 0:11:32]} 41... Nxe2 {[%clk 0:07:59.6]}
42. Kf2 {[%clk 0:11:35.4]} 42... Nc3 {[%clk 0:08:02.1]} 43. g4 {[%clk
0:11:39.1]} 43... fxg4 {[%clk 0:08:03.9]} 44. fxg4 {[%clk 0:11:43.7]} 44... Na4
{[%clk 0:08:05.3]} 45. Ke3 {[%clk 0:11:47.6]} 45... b6 {[%clk 0:08:07.9]} 46. a6
{[%clk 0:11:49]} 46... Nc5 {[%clk 0:08:06.3]} 47. a7 {[%clk 0:11:52.2]} 1-0